[Event "World Prestigious University 2019"]
[Site "Tianjin"]
[Date "2019.11.29"]
[Round "10.17"]
[White "Wei, Siyu"]
[Black "Lu, Andrew H"]
[Result "1-0"]
[WhiteElo "2106"]
[BlackElo "2071"]
[PlyCount "44"]
[EventDate "2019.11.26"]
[EventType "team-tourn"]
[EventCountry "CHN"]
[TimeControl "1500+10"]
[WhiteClock "0:15:29"]
[BlackClock "0:17:07"]

1. d4 {[%emt 0:00:00]} Nf6 {[%emt 0:00:00]} 2. Bg5 {[%emt 0:00:00]} Ne4 {[%emt 0:00:00]} 3. Bf4 {[%emt 0:00:01]} c5 {[%emt 0:00:00]} 4. d5 {[%emt 0:00:42]} Qb6 {[%emt 0:00:24]} 5. Qc1 {[%emt 0:00:07]} e6 {[%emt 0:00:24]} 6. dxe6 {[%emt 0:00:38]} dxe6 {[%emt 0:00:30]} 7. Nf3 {[%emt 0:00:08]} Be7 {[%emt 0:00:28]} 8. e3 {[%emt 0:00:06]} O-O {[%emt 0:00:46]} 9. Bd3 {[%emt 0:00:04]} Nf6 {[%emt 0:00:21]} 10. Nbd2 {[%emt 0:00:32]} Nd5 {[%emt 0:00:44]} 11. Bg3 {[%emt 0:01:31]} Nc6 {[%emt 0:00:26]} 12. c3 {[%emt 0:00:26]} Qd8 {[%emt 0:00:51]} 13. Qc2 {[%emt 0:01:03]} h6 {[%emt 0:01:02]} 14. O-O {[%emt 0:02:12]} b6 {[%emt 0:01:10]} 15. Rfd1 {[%emt 0:00:18]} Bb7 {[%emt 0:00:45]} 16. Nc4 {[%emt 0:01:56]} b5 {[%emt 0:01:09]} 17. Nce5 {[%emt 0:00:04]} Nxe5 {[%emt 0:00:21]} 18. Nxe5 {[%emt 0:00:02]} c4 {[%emt 0:01:37]} 19. Bh7+ {[%emt 0:00:24]} Kh8 {[%emt 0:00:01]} 20. e4 {[%emt 0:00:19]} Ne3 {[%emt 0:00:26]} 21. fxe3 {[%emt 0:00:12]} Qc8 {[%emt 0:01:36]} 22. Bg6 {[%emt 0:00:48]} Qe8 1-0

[Event "World Prestigious University 2019"]
[Site "Tianjin"]
[Date "2019.11.29"]
[Round "10.18"]
[White "Papanek, Ella"]
[Black "Lu, Hongyi"]
[Result "1-0"]
[WhiteElo "1777"]
[BlackElo "1862"]
[PlyCount "77"]
[EventDate "2019.11.26"]
[EventType "team-tourn"]
[EventCountry "CHN"]
[TimeControl "1500+10"]
[WhiteClock "0:00:15"]
[BlackClock "0:00:27"]

1. d4 {[%emt 0:00:00]} Nf6 {[%emt 0:00:00]} 2. c4 {[%emt 0:00:00]} e6 {[%emt 0:00:00]} 3. Nc3 {[%emt 0:00:00]} d5 {[%emt 0:00:00]} 4. cxd5 {[%emt 0:00:00]} exd5 {[%emt 0:00:04]} 5. Bg5 {[%emt 0:00:02]} c6 {[%emt 0:00:26]} 6. e3 {[%emt 0:00:02]} h6 {[%emt 0:00:19]} 7. Bh4 {[%emt 0:00:03]} Bd6 {[%emt 0:02:14]} 8. Bd3 {[%emt 0:00:30]} Be6 {[%emt 0:00:49]} 9. Nge2 {[%emt 0:00:17]} O-O {[%emt 0:00:59]} 10. Rc1 {[%emt 0:00:23]} Nbd7 {[%emt 0:00:29]} 11. f3 {[%emt 0:00:10]} Re8 {[%emt 0:02:02]} 12. e4 {[%emt 0:00:57]} Be7 {[%emt 0:02:12]} 13. e5 {[%emt 0:00:41]} Nh7 {[%emt 0:00:28]} 14. Bg3 {[%emt 0:00:17]} c5 {[%emt 0:00:27]} 15. f4 {[%emt 0:00:16]} f5 {[%emt 0:02:31]} 16. Bf2 {[%emt 0:01:49]} Nhf8 {[%emt 0:01:00]} 17. Ng3 {[%emt 0:00:21]} g6 {[%emt 0:00:07]} 18. Qf3 {[%emt 0:01:16]} cxd4 {[%emt 0:00:22]} 19. Bxd4 {[%emt 0:00:30]} Bc5 {[%emt 0:02:06]} 20. Nge2 {[%emt 0:01:45]} Rc8 {[%emt 0:01:57]} 21. a3 {[%emt 0:05:05]} Bxd4 {[%emt 0:00:51]} 22. Nxd4 {[%emt 0:00:03]} Nc5 {[%emt 0:01:58]} 23. Bb5 {[%emt 0:03:34]} Re7 {[%emt 0:00:24]} 24. O-O {[%emt 0:02:29]} a6 {[%emt 0:00:06]} 25. Be2 {[%emt 0:00:29]} Ne4 {[%emt 0:00:41]} 26. Rfd1 {[%emt 0:00:20]} Qb6 {[%emt 0:00:18]} 27. Na4 {[%emt 0:03:58]} Qa7 {[%emt 0:01:08]} 28. Rxc8 {[%emt 0:00:32]} Bxc8 {[%emt 0:00:02]} 29. b4 {[%emt 0:00:32]} Ne6 {[%emt 0:00:44]} 30. Qe3 {[%emt 0:00:20]} Rc7 {[%emt 0:01:11]} 31. Nxf5 {[%emt 0:00:44]} Qxe3+ {[%emt 0:00:13]} 32. Nxe3 {[%emt 0:00:03]} Nxf4 {[%emt 0:00:53]} 33. Bf3 {[%emt 0:00:22]} Be6 {[%emt 0:01:12]} 34. Bxe4 {[%emt 0:01:28]} dxe4 {[%emt 0:00:03]} 35. Nc5 {[%emt 0:00:15]} Ne2+ {[%emt 0:01:48]} 36. Kf2 {[%emt 0:00:19]} Nc3 {[%emt 0:00:05]} 37. Rd8+ {[%emt 0:00:30]} Kf7 {[%emt 0:00:01]} 38. Rh8 {[%emt 0:00:22]} Bd7 {[%emt 0:00:55]} 39. e6+ {[%emt 0:00:19]} 1-0

[Event "World Prestigious University 2019"]
[Site "Tianjin"]
[Date "2019.11.29"]
[Round "11.1"]
[White "Weichao, Chu"]
[Black "TannerAustin, McNamara"]
[Result "1/2-1/2"]
[WhiteElo "2423"]
[BlackElo "1983"]
[PlyCount "101"]
[EventDate "2019.11.26"]
[EventType "team-tourn"]
[EventCountry "CHN"]
[TimeControl "1500+10"]
[WhiteClock "0:00:54"]
[BlackClock "0:00:37"]

1. d4 {[%emt 0:00:11]} d5 {[%emt 0:00:00]} 2. c4 {[%emt 0:00:19]} c6 {[%emt 0:00:06]} 3. Nf3 {[%emt 0:00:03]} Nf6 {[%emt 0:00:02]} 4. Nbd2 {[%emt 0:00:03]} g6 {[%emt 0:00:36]} 5. e3 {[%emt 0:00:28]} Bg7 {[%emt 0:00:03]} 6. Be2 {[%emt 0:00:02]} O-O {[%emt 0:00:03]} 7. O-O {[%emt 0:00:03]} a6 {[%emt 0:01:13]} 8. b3 {[%emt 0:00:35]} Nbd7 {[%emt 0:00:57]} 9. Bb2 {[%emt 0:01:12]} Ne4 {[%emt 0:03:16]} 10. cxd5 {[%emt 0:02:08]} cxd5 {[%emt 0:00:02]} 11. Ne5 {[%emt 0:01:01]} Nxe5 {[%emt 0:02:46]} 12. dxe5 {[%emt 0:00:12]} Qa5 {[%emt 0:00:13]} 13. Nf3 {[%emt 0:05:37]} Be6 {[%emt 0:01:07]} 14. Qe1 {[%emt 0:01:43]} Qxe1 {[%emt 0:02:29]} 15. Rfxe1 {[%emt 0:00:02]} Rfc8 {[%emt 0:00:35]} 16. Rac1 {[%emt 0:00:29]} Rxc1 {[%emt 0:00:37]} 17. Rxc1 {[%emt 0:00:01]} Rc8 {[%emt 0:00:01]} 18. Rxc8+ {[%emt 0:00:03]} Bxc8 {[%emt 0:00:01]} 19. h3 {[%emt 0:00:02]} Kf8 {[%emt 0:00:55]} 20. Bd4 {[%emt 0:00:41]} Ke8 {[%emt 0:00:33]} 21. Bd3 {[%emt 0:01:05]} f5 {[%emt 0:03:50]} 22. exf6 {[%emt 0:00:23]} Nxf6 {[%emt 0:01:21]} 23. g4 {[%emt 0:01:38]} Kf8 {[%emt 0:01:08]} 24. Ng5 {[%emt 0:00:50]} Kg8 {[%emt 0:00:12]} 25. f4 {[%emt 0:01:33]} Ne8 {[%emt 0:00:57]} 26. Kg2 {[%emt 0:01:06]} Bxd4 {[%emt 0:00:37]} 27. exd4 {[%emt 0:00:02]} Nd6 {[%emt 0:00:02]} 28. Kg3 {[%emt 0:00:13]} Bd7 {[%emt 0:00:56]} 29. Nf3 {[%emt 0:01:03]} Bb5 {[%emt 0:00:29]} 30. Bc2 {[%emt 0:00:57]} Be2 {[%emt 0:02:02]} 31. Ng1 {[%emt 0:00:54]} Bb5 {[%emt 0:00:21]} 32. Kf2 {[%emt 0:01:41]} a5 {[%emt 0:00:02]} 33. Nf3 {[%emt 0:00:16]} Kg7 {[%emt 0:00:35]} 34. Ne5 {[%emt 0:00:14]} Be8 {[%emt 0:00:31]} 35. Bd3 {[%emt 0:00:39]} b5 {[%emt 0:00:32]} 36. a3 {[%emt 0:01:16]} Nf7 {[%emt 0:01:04]} 37. Ke3 {[%emt 0:00:26]} Nd6 {[%emt 0:00:08]} 38. Be2 {[%emt 0:00:35]} Nf7 {[%emt 0:00:06]} 39. Bf3 {[%emt 0:00:13]} e6 {[%emt 0:00:02]} 40. Nd3 {[%emt 0:01:26]} Nd6 {[%emt 0:00:05]} 41. Nc5 {[%emt 0:00:03]} Kf6 {[%emt 0:00:03]} 42. Be2 {[%emt 0:00:15]} Ke7 {[%emt 0:00:12]} 43. h4 {[%emt 0:00:08]} h5 {[%emt 0:00:35]} 44. Bd1 {[%emt 0:00:13]} Kf6 {[%emt 0:00:07]} 45. g5+ {[%emt 0:00:12]} Ke7 {[%emt 0:00:02]} 46. Bc2 {[%emt 0:00:01]} Bf7 {[%emt 0:00:27]} 47. Bd3 {[%emt 0:00:06]} Be8 {[%emt 0:00:04]} 48. Kd2 {[%emt 0:00:11]} Bf7 {[%emt 0:00:19]} 49. Ke3 {[%emt 0:00:16]} Be8 {[%emt 0:00:01]} 50. Kd2 {[%emt 0:00:01]} Bf7 {[%emt 0:00:01]} 51. Ke3 {[%emt 0:00:02]} 1/2-1/2

[Event "World Prestigious University 2019"]
[Site "Tianjin"]
[Date "2019.11.29"]
[Round "11.2"]
[White "Lei, Sean"]
[Black "Wei, Siyu"]
[Result "0-1"]
[WhiteElo "1895"]
[BlackElo "2106"]
[PlyCount "96"]
[EventDate "2019.11.26"]
[EventType "team-tourn"]
[EventCountry "CHN"]
[TimeControl "1500+10"]
[WhiteClock "0:00:48"]
[BlackClock "0:00:21"]

1. e4 {[%emt 0:00:00]} c5 {[%emt 0:00:00]} 2. Nf3 {[%emt 0:00:00]} e6 {[%emt 0:00:00]} 3. c3 {[%emt 0:00:01]} d5 {[%emt 0:00:08]} 4. d3 {[%emt 0:01:00]} dxe4 {[%emt 0:00:18]} 5. dxe4 {[%emt 0:00:01]} Qxd1+ {[%emt 0:00:02]} 6. Kxd1 {[%emt 0:00:02]} b6 {[%emt 0:01:00]} 7. Bb5+ {[%emt 0:00:33]} Bd7 {[%emt 0:00:29]} 8. Bxd7+ {[%emt 0:00:04]} Nxd7 {[%emt 0:00:01]} 9. Bf4 {[%emt 0:00:27]} Ngf6 {[%emt 0:00:41]} 10. Nbd2 {[%emt 0:00:08]} Nh5 {[%emt 0:03:28]} 11. Be3 {[%emt 0:00:21]} Bd6 {[%emt 0:00:07]} 12. Nc4 {[%emt 0:00:30]} Bc7 {[%emt 0:01:33]} 13. a4 {[%emt 0:02:20]} Nhf6 {[%emt 0:00:19]} 14. Nfd2 {[%emt 0:01:17]} Ng4 {[%emt 0:00:08]} 15. f3 {[%emt 0:01:02]} Nxe3+ {[%emt 0:00:03]} 16. Nxe3 {[%emt 0:00:02]} Ke7 {[%emt 0:00:53]} 17. Ke2 {[%emt 0:00:16]} Rhd8 {[%emt 0:00:21]} 18. Ndc4 {[%emt 0:00:31]} a6 {[%emt 0:00:14]} 19. Na3 {[%emt 0:02:18]} Ne5 {[%emt 0:01:25]} 20. Rad1 {[%emt 0:01:14]} Nc6 {[%emt 0:01:37]} 21. g3 {[%emt 0:01:14]} Rab8 {[%emt 0:00:47]} 22. Rxd8 {[%emt 0:00:06]} Nxd8 {[%emt 0:00:36]} 23. b4 {[%emt 0:05:04]} cxb4 {[%emt 0:01:32]} 24. cxb4 {[%emt 0:00:04]} Bd6 {[%emt 0:00:10]} 25. Rb1 {[%emt 0:02:21]} a5 {[%emt 0:02:25]} 26. Nac2 {[%emt 0:00:13]} axb4 {[%emt 0:00:17]} 27. Nxb4 {[%emt 0:00:15]} Ra8 {[%emt 0:00:23]} 28. Nd3 {[%emt 0:01:23]} Ra6 {[%emt 0:04:16]} 29. Nc4 {[%emt 0:00:54]} Bc7 {[%emt 0:00:18]} 30. Ke3 {[%emt 0:01:15]} Rxa4 {[%emt 0:00:55]} 31. Nxb6 {[%emt 0:00:12]} Ra2 {[%emt 0:00:02]} 32. Nf2 {[%emt 0:01:39]} Rc2 {[%emt 0:01:37]} 33. Na4 {[%emt 0:01:04]} Nc6 {[%emt 0:01:02]} 34. Rb2 {[%emt 0:00:32]} Rc4 {[%emt 0:01:05]} 35. Ra2 {[%emt 0:02:03]} Nb4 {[%emt 0:00:26]} 36. Rd2 {[%emt 0:00:07]} Nc6 {[%emt 0:01:13]} 37. Nb2 {[%emt 0:00:05]} Bb6+ {[%emt 0:00:01]} 38. Kf4 {[%emt 0:00:27]} Rc5 {[%emt 0:00:50]} 39. Nbd3 {[%emt 0:00:06]} Ra5 {[%emt 0:00:20]} 40. Rb2 {[%emt 0:00:07]} Bd4 {[%emt 0:00:16]} 41. Rc2 {[%emt 0:00:03]} Kd7 {[%emt 0:00:14]} 42. h4 {[%emt 0:00:12]} h5 {[%emt 0:00:01]} 43. g4 {[%emt 0:00:04]} hxg4 {[%emt 0:00:09]} 44. Nxg4 {[%emt 0:00:14]} e5+ {[%emt 0:00:06]} 45. Kg5 {[%emt 0:00:18]} Nd8 {[%emt 0:00:07]} 46. Kf5 {[%emt 0:00:07]} Ne6 {[%emt 0:00:08]} 47. Ndxe5+ {[%emt 0:00:11]} Ke7 {[%emt 0:00:06]} 48. Rc6 {[%emt 0:00:12]} g6# {[%emt 0:00:03]} 0-1

[Event "World Prestigious University 2019"]
[Site "Tianjin"]
[Date "2019.11.29"]
[Round "11.3"]
[White "Lu, Hongyi"]
[Black "Zhou, Qiyu"]
[Result "1-0"]
[WhiteElo "1862"]
[BlackElo "2216"]
[PlyCount "129"]
[EventDate "2019.11.26"]
[EventType "team-tourn"]
[EventCountry "CHN"]
[TimeControl "1500+10"]
[WhiteClock "0:01:17"]
[BlackClock "0:01:14"]

1. e4 {[%emt 0:00:00]} e5 {[%emt 0:00:00]} 2. Nf3 {[%emt 0:00:00]} Nc6 {[%emt 0:00:00]} 3. Bb5 {[%emt 0:00:00]} a6 {[%emt 0:00:00]} 4. Ba4 {[%emt 0:00:00]} Nf6 {[%emt 0:00:00]} 5. O-O {[%emt 0:00:03]} Be7 {[%emt 0:00:05]} 6. Re1 {[%emt 0:00:11]} b5 {[%emt 0:00:02]} 7. Bb3 {[%emt 0:00:02]} d6 {[%emt 0:00:02]} 8. c3 {[%emt 0:00:25]} O-O {[%emt 0:00:04]} 9. h3 {[%emt 0:00:02]} Nb8 {[%emt 0:00:13]} 10. d4 {[%emt 0:00:29]} Nbd7 {[%emt 0:00:01]} 11. Nbd2 {[%emt 0:00:23]} Bb7 {[%emt 0:00:03]} 12. Bc2 {[%emt 0:01:06]} Re8 {[%emt 0:00:11]} 13. Nf1 {[%emt 0:00:13]} Bf8 {[%emt 0:00:03]} 14. Ng3 {[%emt 0:00:45]} g6 {[%emt 0:00:02]} 15. Bg5 {[%emt 0:03:30]} Bg7 {[%emt 0:00:10]} 16. Qd2 {[%emt 0:00:20]} Nf8 {[%emt 0:00:51]} 17. d5 {[%emt 0:01:12]} Qd7 {[%emt 0:01:30]} 18. b3 {[%emt 0:02:00]} c6 {[%emt 0:00:03]} 19. c4 {[%emt 0:00:32]} Rac8 {[%emt 0:00:10]} 20. Rac1 {[%emt 0:00:49]} Qe7 {[%emt 0:01:38]} 21. h4 {[%emt 0:03:12]} Qd7 {[%emt 0:01:30]} 22. Red1 {[%emt 0:00:16]} Ng4 {[%emt 0:00:57]} 23. Bd3 {[%emt 0:03:46]} h6 {[%emt 0:07:45]} 24. Be3 {[%emt 0:00:04]} Qe7 {[%emt 0:03:47]} 25. Be2 {[%emt 0:00:32]} Red8 {[%emt 0:02:30]} 26. a4 {[%emt 0:02:09]} bxc4 {[%emt 0:00:48]} 27. bxc4 {[%emt 0:00:12]} cxd5 {[%emt 0:00:51]} 28. cxd5 {[%emt 0:01:13]} Nxe3 {[%emt 0:00:40]} 29. Qxe3 {[%emt 0:00:05]} Nd7 {[%emt 0:00:30]} 30. h5 {[%emt 0:02:46]} Nc5 {[%emt 0:00:13]} 31. a5 {[%emt 0:00:11]} Rc7 {[%emt 0:00:53]} 32. Rc2 {[%emt 0:00:23]} Rdc8 {[%emt 0:00:26]} 33. Rdc1 {[%emt 0:00:05]} Qd7 {[%emt 0:00:13]} 34. Qa3 {[%emt 0:02:39]} f5 {[%emt 0:00:56]} 35. hxg6 {[%emt 0:00:53]} fxe4 {[%emt 0:00:15]} 36. Nh4 {[%emt 0:00:12]} Bxd5 {[%emt 0:00:09]} 37. Nhf5 {[%emt 0:00:16]} Be6 {[%emt 0:00:07]} 38. Bg4 {[%emt 0:00:11]} Rb8 {[%emt 0:01:59]} 39. Qe3 {[%emt 0:00:10]} Rb3 {[%emt 0:00:34]} 40. Rc3 {[%emt 0:00:01]} Rxc3 {[%emt 0:00:06]} 41. Rxc3 {[%emt 0:00:04]} h5 {[%emt 0:00:37]} 42. Nxg7 {[%emt 0:00:06]} Qxg7 {[%emt 0:00:48]} 43. Bxh5 {[%emt 0:00:24]} Rb7 {[%emt 0:00:10]} 44. Nxe4 {[%emt 0:00:10]} Rb1+ {[%emt 0:00:03]} 45. Kh2 {[%emt 0:00:06]} Qh8 {[%emt 0:00:06]} 46. Ng3 {[%emt 0:00:06]} Rb4 {[%emt 0:00:25]} 47. Qg5 {[%emt 0:00:03]} Qg7 {[%emt 0:00:11]} 48. Rf3 {[%emt 0:00:08]} Rb8 {[%emt 0:00:04]} 49. Bg4 {[%emt 0:00:29]} Bd5 {[%emt 0:00:03]} 50. Rc3 {[%emt 0:00:11]} Qh8+ {[%emt 0:00:10]} 51. Bh5 {[%emt 0:00:08]} Qg7 {[%emt 0:00:06]} 52. Nf5 {[%emt 0:00:05]} Ne4 {[%emt 0:00:19]} 53. Qh4 {[%emt 0:00:13]} Qf6 {[%emt 0:00:13]} 54. Qxf6 Nxf6 {[%emt 0:00:01]} 55. Be2 {[%emt 0:00:28]} Be4 {[%emt 0:00:12]} 56. Nxd6 {[%emt 0:00:04]} Bxg6 {[%emt 0:00:01]} 57. Bxa6 {[%emt 0:00:06]} Ra8 {[%emt 0:00:09]} 58. Rc8+ {[%emt 0:00:05]} Rxc8 {[%emt 0:00:01]} 59. Bxc8 {[%emt 0:00:02]} Kf8 {[%emt 0:00:04]} 60. a6 {[%emt 0:00:02]} Nd5 {[%emt 0:00:05]} 61. a7 {[%emt 0:00:03]} Nc7 {[%emt 0:00:08]} 62. Bb7 {[%emt 0:00:03]} Be8 {[%emt 0:00:08]} 63. Nxe8 {[%emt 0:00:07]} Kxe8 {[%emt 0:00:01]} 64. a8=Q+ {[%emt 0:00:03]} Nxa8 {[%emt 0:00:01]} 65. Bxa8 {[%emt 0:00:02]} 1-0

[Event "World Prestigious University 2019"]
[Site "Tianjin"]
[Date "2019.11.29"]
[Round "11.4"]
[White "Kukhmazov, Arsen"]
[Black "Isakov, Michael"]
[Result "1/2-1/2"]
[WhiteElo "2377"]
[BlackElo "2162"]
[PlyCount "91"]
[EventDate "2019.11.26"]
[EventType "team-tourn"]
[EventCountry "CHN"]
[TimeControl "1500+10"]
[WhiteClock "0:03:35"]
[BlackClock "0:00:19"]

1. d4 {[%emt 0:00:00]} d5 {[%emt 0:00:00]} 2. c4 {[%emt 0:00:00]} e6 {[%emt 0:00:00]} 3. Nf3 {[%emt 0:00:00]} Nf6 {[%emt 0:00:00]} 4. g3 {[%emt 0:00:00]} Be7 {[%emt 0:00:00]} 5. Bg2 {[%emt 0:00:00]} O-O {[%emt 0:00:00]} 6. O-O {[%emt 0:00:00]} Nbd7 {[%emt 0:00:08]} 7. Qc2 {[%emt 0:02:36]} c6 {[%emt 0:00:40]} 8. Nbd2 {[%emt 0:00:11]} b6 {[%emt 0:00:35]} 9. e4 {[%emt 0:00:02]} dxc4 {[%emt 0:00:08]} 10. Nxc4 {[%emt 0:00:39]} Ba6 {[%emt 0:00:14]} 11. Rd1 {[%emt 0:01:20]} c5 {[%emt 0:00:21]} 12. d5 {[%emt 0:00:41]} exd5 {[%emt 0:00:04]} 13. exd5 {[%emt 0:00:00]} Bxc4 {[%emt 0:00:02]} 14. Qxc4 {[%emt 0:00:01]} Bd6 {[%emt 0:00:03]} 15. Bf4 {[%emt 0:03:26]} Qb8 {[%emt 0:01:32]} 16. Bxd6 {[%emt 0:00:02]} Qxd6 {[%emt 0:00:02]} 17. Qa6 {[%emt 0:00:00]} Ne4 {[%emt 0:06:47]} 18. Nh4 {[%emt 0:01:36]} Rfe8 {[%emt 0:03:48]} 19. Re1 {[%emt 0:01:14]} Ndf6 {[%emt 0:01:40]} 20. Qd3 {[%emt 0:11:25]} g5 {[%emt 0:01:09]} 21. Bxe4 {[%emt 0:00:42]} gxh4 {[%emt 0:00:01]} 22. Bf3 {[%emt 0:00:08]} hxg3 {[%emt 0:02:06]} 23. hxg3 {[%emt 0:00:01]} Re5 {[%emt 0:00:22]} 24. Rxe5 {[%emt 0:00:15]} Qxe5 {[%emt 0:00:01]} 25. d6 {[%emt 0:02:54]} Rd8 {[%emt 0:00:08]} 26. Rd1 {[%emt 0:00:00]} c4 {[%emt 0:04:38]} 27. Qxc4 {[%emt 0:00:11]} Rxd6 {[%emt 0:00:09]} 28. Rxd6 Qxd6 {[%emt 0:00:02]} 29. Kg2 {[%emt 0:00:12]} Qe5 {[%emt 0:01:02]} 30. b4 {[%emt 0:00:06]} a5 {[%emt 0:00:22]} 31. b5 {[%emt 0:00:37]} Kg7 {[%emt 0:00:02]} 32. Bc6 {[%emt 0:00:25]} h5 {[%emt 0:00:35]} 33. Bf3 {[%emt 0:00:36]} Kg6 {[%emt 0:00:11]} 34. a4 {[%emt 0:00:00]} Kg7 {[%emt 0:00:02]} 35. Qd3 {[%emt 0:00:24]} Qc5 {[%emt 0:00:22]} 36. Qd2 {[%emt 0:00:18]} Qe5 {[%emt 0:00:08]} 37. Qd8 {[%emt 0:00:29]} Qc5 {[%emt 0:00:02]} 38. Qd3 {[%emt 0:00:10]} Qe5 {[%emt 0:00:06]} 39. Qd2 {[%emt 0:00:13]} Qc5 {[%emt 0:00:05]} 40. Qf4 {[%emt 0:00:02]} Kg6 {[%emt 0:00:18]} 41. Bc6 {[%emt 0:00:10]} Kg7 {[%emt 0:00:19]} 42. Bf3 {[%emt 0:00:31]} Kg6 {[%emt 0:00:05]} 43. Bc6 {[%emt 0:00:01]} Kg7 {[%emt 0:00:01]} 44. Kf1 {[%emt 0:00:26]} Ng4 {[%emt 0:00:26]} 45. Kg2 {[%emt 0:00:10]} Nf6 {[%emt 0:00:09]} 46. Bf3 {[%emt 0:00:07]} 1/2-1/2

[Event "World Prestigious University 2019"]
[Site "Tianjin"]
[Date "2019.11.29"]
[Round "11.5"]
[White "Lu, Andrew H"]
[Black "Tarasov, Alexandr"]
[Result "1/2-1/2"]
[WhiteElo "2071"]
[BlackElo "2348"]
[PlyCount "61"]
[EventDate "2019.11.26"]
[EventType "team-tourn"]
[EventCountry "CHN"]
[TimeControl "1500+10"]
[WhiteClock "0:09:20"]
[BlackClock "0:11:16"]

1. d4 {[%emt 0:00:00]} e6 {[%emt 0:00:00]} 2. Nf3 {[%emt 0:00:00]} c5 {[%emt 0:00:06]} 3. e4 {[%emt 0:00:00]} cxd4 {[%emt 0:00:13]} 4. Nxd4 {[%emt 0:00:00]} Nc6 {[%emt 0:00:01]} 5. Nb5 {[%emt 0:00:17]} Nf6 {[%emt 0:01:28]} 6. N1c3 {[%emt 0:00:04]} Bb4 {[%emt 0:00:08]} 7. a3 {[%emt 0:00:02]} Bxc3+ {[%emt 0:00:13]} 8. Nxc3 {[%emt 0:00:01]} d5 {[%emt 0:00:28]} 9. exd5 {[%emt 0:00:03]} Nxd5 {[%emt 0:00:55]} 10. Nxd5 {[%emt 0:00:16]} exd5 {[%emt 0:00:10]} 11. Bd3 {[%emt 0:00:19]} Qf6 {[%emt 0:02:22]} 12. O-O {[%emt 0:00:17]} Be6 {[%emt 0:00:18]} 13. Qh5 {[%emt 0:01:31]} h6 {[%emt 0:00:13]} 14. Bd2 {[%emt 0:00:55]} O-O {[%emt 0:00:17]} 15. Rfe1 {[%emt 0:01:40]} d4 {[%emt 0:01:57]} 16. b4 {[%emt 0:03:22]} Rad8 {[%emt 0:01:59]} 17. Be4 {[%emt 0:02:37]} Rfe8 {[%emt 0:00:31]} 18. h4 {[%emt 0:00:26]} Ne5 {[%emt 0:04:07]} 19. Qxe5 {[%emt 0:01:24]} Qxe5 {[%emt 0:00:04]} 20. Bh7+ {[%emt 0:00:01]} Kxh7 {[%emt 0:00:02]} 21. Rxe5 {[%emt 0:00:00]} Rc8 {[%emt 0:00:46]} 22. Rc1 {[%emt 0:00:46]} Rc4 {[%emt 0:01:04]} 23. Rc5 {[%emt 0:03:00]} Rxc5 {[%emt 0:01:00]} 24. bxc5 {[%emt 0:00:01]} Rc8 {[%emt 0:00:04]} 25. Bb4 {[%emt 0:00:28]} a5 {[%emt 0:00:09]} 26. Bxa5 {[%emt 0:00:02]} Rxc5 {[%emt 0:00:03]} 27. Bb6 {[%emt 0:00:33]} Rc4 {[%emt 0:00:17]} 28. Rd1 {[%emt 0:00:08]} Rxc2 {[%emt 0:01:08]} 29. Bxd4 {[%emt 0:00:11]} b5 {[%emt 0:00:16]} 30. Rb1 {[%emt 0:00:18]} Rc4 {[%emt 0:00:21]} 31. Rb4 {[%emt 0:00:12]} 1/2-1/2

[Event "World Prestigious University 2019"]
[Site "Tianjin"]
[Date "2019.11.29"]
[Round "11.6"]
[White "Bogachkova, Alena"]
[Black "Papanek, Ella"]
[Result "1/2-1/2"]
[WhiteElo "2080"]
[BlackElo "1777"]
[PlyCount "66"]
[EventDate "2019.11.26"]
[EventType "team-tourn"]
[EventCountry "CHN"]
[TimeControl "1500+10"]
[WhiteClock "0:00:44"]
[BlackClock "0:00:25"]

1. e4 {[%emt 0:00:00]} c5 {[%emt 0:00:00]} 2. Nf3 {[%emt 0:00:00]} e6 {[%emt 0:00:00]} 3. d4 {[%emt 0:00:00]} cxd4 {[%emt 0:00:00]} 4. Nxd4 {[%emt 0:00:00]} a6 {[%emt 0:00:00]} 5. Bd3 {[%emt 0:00:00]} Qc7 {[%emt 0:00:00]} 6. O-O {[%emt 0:00:04]} Nc6 {[%emt 0:00:25]} 7. Nxc6 {[%emt 0:00:03]} bxc6 {[%emt 0:00:02]} 8. c4 {[%emt 0:00:06]} Bb7 {[%emt 0:00:08]} 9. Nc3 {[%emt 0:00:05]} Ne7 {[%emt 0:00:35]} 10. b3 {[%emt 0:03:28]} Ng6 {[%emt 0:01:10]} 11. Bb2 {[%emt 0:02:09]} f6 {[%emt 0:01:03]} 12. Re1 {[%emt 0:01:03]} Bd6 {[%emt 0:00:35]} 13. g3 {[%emt 0:01:52]} h5 {[%emt 0:01:31]} 14. Be2 {[%emt 0:04:45]} O-O-O {[%emt 0:13:50]} 15. Bxh5 {[%emt 0:06:23]} Ne5 {[%emt 0:00:02]} 16. f4 {[%emt 0:00:27]} Bc5+ {[%emt 0:00:22]} 17. Kg2 {[%emt 0:00:14]} Nd3 {[%emt 0:02:32]} 18. Qxd3 {[%emt 0:00:33]} Rxh5 {[%emt 0:00:02]} 19. Na4 {[%emt 0:00:15]} Ba7 {[%emt 0:00:39]} 20. c5 {[%emt 0:02:04]} Rdh8 {[%emt 0:00:02]} 21. h4 {[%emt 0:00:18]} Bxc5 {[%emt 0:00:40]} 22. Nxc5 {[%emt 0:00:02]} Rxc5 {[%emt 0:00:02]} 23. Rad1 {[%emt 0:02:31]} d5 {[%emt 0:01:34]} 24. e5 {[%emt 0:00:10]} f5 {[%emt 0:01:45]} 25. a4 {[%emt 0:00:12]} d4 {[%emt 0:00:28]} 26. b4 {[%emt 0:01:12]} Rd5 {[%emt 0:00:12]} 27. Kf2 {[%emt 0:00:06]} Qb6 {[%emt 0:00:14]} 28. Bxd4 {[%emt 0:00:42]} Qxb4 {[%emt 0:00:28]} 29. Qc3 {[%emt 0:00:28]} Qxa4 {[%emt 0:00:41]} 30. Rd2 {[%emt 0:00:18]} Rhd8 {[%emt 0:00:08]} 31. Red1 {[%emt 0:00:04]} Qa5 {[%emt 0:00:31]} 32. Qb2 {[%emt 0:00:27]} Qb5 {[%emt 0:00:04]} 33. Qc3 {[%emt 0:00:04]} Qa5 {[%emt 0:00:01]} 1/2-1/2

[Event "World Prestigious University 2019"]
[Site "Tianjin"]
[Date "2019.11.29"]
[Round "11.7"]
[White "Green, Michael L"]
[Black "Theodorou, Nikolas"]
[Result "0-1"]
[WhiteElo "2073"]
[BlackElo "2555"]
[PlyCount "50"]
[EventDate "2019.11.26"]
[EventType "team-tourn"]
[EventCountry "CHN"]
[TimeControl "1500+10"]
[WhiteClock "0:16:14"]
[BlackClock "0:09:05"]

1. Nf3 {[%emt 0:00:00]} Nf6 {[%emt 0:00:50]} 2. c4 {[%emt 0:00:00]} g6 {[%emt 0:00:09]} 3. Nc3 {[%emt 0:00:00]} Bg7 {[%emt 0:00:02]} 4. e4 {[%emt 0:00:03]} d6 {[%emt 0:00:01]} 5. Be2 {[%emt 0:00:04]} O-O {[%emt 0:00:07]} 6. h3 {[%emt 0:00:01]} c6 {[%emt 0:00:19]} 7. d3 {[%emt 0:00:05]} e5 {[%emt 0:00:36]} 8. O-O {[%emt 0:00:12]} a5 {[%emt 0:00:05]} 9. Be3 {[%emt 0:00:22]} Re8 {[%emt 0:01:31]} 10. a3 {[%emt 0:00:01]} h6 {[%emt 0:00:13]} 11. Qd2 {[%emt 0:00:49]} Kh7 {[%emt 0:00:05]} 12. Rab1 {[%emt 0:00:17]} d5 {[%emt 0:00:29]} 13. exd5 {[%emt 0:00:32]} cxd5 {[%emt 0:00:02]} 14. d4 {[%emt 0:00:03]} exd4 {[%emt 0:00:34]} 15. Nxd4 {[%emt 0:00:47]} dxc4 {[%emt 0:02:39]} 16. Bxc4 {[%emt 0:00:15]} Ne4 {[%emt 0:00:02]} 17. Nxe4 {[%emt 0:00:20]} Rxe4 {[%emt 0:00:03]} 18. Rfd1 {[%emt 0:03:32]} Bxd4 {[%emt 0:03:18]} 19. Bxd4 {[%emt 0:02:22]} Nc6 {[%emt 0:00:20]} 20. Bb6 {[%emt 0:09:08]} Qxd2 {[%emt 0:00:36]} 21. Rxd2 {[%emt 0:00:02]} Rxc4 {[%emt 0:00:03]} 22. b4 {[%emt 0:00:23]} axb4 {[%emt 0:00:10]} 23. axb4 {[%emt 0:00:01]} Bf5 {[%emt 0:00:22]} 24. Rbd1 {[%emt 0:00:44]} Rxb4 {[%emt 0:00:07]} 25. Bc5 {[%emt 0:00:02]} Rc4 {[%emt 0:00:13]} 0-1